[Event "Late-Titled-Tuesday-Blitz-July-09-2024"]
[Site "Chess.com"]
[Date "2024.07.09"]
[Round "8"]
[White "Kombinator01"]
[Black "swayamsm"]
[Result "1-0"]
[WhiteElo "2485"]
[BlackElo "2617"]
[TimeControl "180+1"]
[EndTime "15:27:49 PDT"]
[Termination "Kombinator01 won by checkmate"]

1. d4 {[%clk 0:03:00.9]} 1... Nf6 {[%clk 0:02:59.2]} 2. Bf4 {[%clk 0:03:00.5]}
2... b6 {[%clk 0:02:58.2]} 3. e3 {[%clk 0:02:56.1]} 3... Bb7 {[%clk 0:02:58.8]}
4. Nf3 {[%clk 0:02:55.8]} 4... e6 {[%clk 0:02:58.8]} 5. Nbd2 {[%clk 0:02:54.3]}
5... d5 {[%clk 0:02:54.7]} 6. Ne5 {[%clk 0:02:53.7]} 6... Bd6 {[%clk 0:02:54.6]}
7. c3 {[%clk 0:02:53.3]} 7... Nbd7 {[%clk 0:02:54.5]} 8. Bb5 {[%clk 0:02:52.7]}
8... O-O {[%clk 0:02:53.4]} 9. Nxd7 {[%clk 0:02:52.7]} 9... Nxd7 {[%clk
0:02:52.8]} 10. Bg3 {[%clk 0:02:49.1]} 10... c6 {[%clk 0:02:47.5]} 11. Bxd6
{[%clk 0:02:47.9]} 11... cxb5 {[%clk 0:02:48]} 12. Bxf8 {[%clk 0:02:47.6]} 12...
Qxf8 {[%clk 0:02:48.6]} 13. Qe2 {[%clk 0:02:46.7]} 13... b4 {[%clk 0:02:48.6]}
14. O-O {[%clk 0:02:44.6]} 14... a5 {[%clk 0:02:46.1]} 15. cxb4 {[%clk
0:02:40.2]} 15... Qxb4 {[%clk 0:02:43.4]} 16. Rfb1 {[%clk 0:02:34.2]} 16... Ba6
{[%clk 0:02:42.8]} 17. Qd1 {[%clk 0:02:31.8]} 17... Bd3 {[%clk 0:02:42.8]} 18.
a3 {[%clk 0:02:30.8]} 18... Qb5 {[%clk 0:02:42.2]} 19. Rc1 {[%clk 0:02:20.4]}
19... Qxb2 {[%clk 0:02:42]} 20. Nf3 {[%clk 0:02:11.9]} 20... Be4 {[%clk
0:02:36.4]} 21. Rc7 {[%clk 0:02:01.9]} 21... Nf8 {[%clk 0:02:19.7]} 22. Ne5
{[%clk 0:01:58.8]} 22... f6 {[%clk 0:02:19.8]} 23. Nc6 {[%clk 0:01:48.7]} 23...
Kh8 {[%clk 0:02:14.2]} 24. f3 {[%clk 0:01:45.9]} 24... Bc2 {[%clk 0:02:09.8]}
25. Qc1 {[%clk 0:01:45.9]} 25... Qc3 {[%clk 0:02:02.1]} 26. Ra2 {[%clk
0:01:42.2]} 26... Qb3 {[%clk 0:01:22.5]} 27. Rxc2 {[%clk 0:01:38.1]} 27... b5
{[%clk 0:01:21.7]} 28. h3 {[%clk 0:01:30.3]} 28... b4 {[%clk 0:01:22.1]} 29.
axb4 {[%clk 0:01:27.3]} 29... axb4 {[%clk 0:01:23]} 30. Nxb4 {[%clk 0:01:21]}
30... Qxb4 {[%clk 0:01:22.8]} 31. Rc8 {[%clk 0:01:20.8]} 31... Ra7 {[%clk
0:01:16.2]} 32. Rb2 {[%clk 0:01:17.4]} 32... Qa3 {[%clk 0:01:11.4]} 33. Qc5
{[%clk 0:00:55.7]} 33... Qxe3+ {[%clk 0:00:53.9]} 34. Kh2 {[%clk 0:00:51.7]}
34... h5 {[%clk 0:00:54.4]} 35. Rxf8+ {[%clk 0:00:44.7]} 35... Kh7 {[%clk
0:00:54.6]} 36. Qxa7 {[%clk 0:00:38.5]} 36... h4 {[%clk 0:00:55.1]} 37. Qb8
{[%clk 0:00:34.6]} 37... e5 {[%clk 0:00:54.7]} 38. Rb1 {[%clk 0:00:30.5]} 38...
Qf4+ {[%clk 0:00:53.4]} 39. Kh1 {[%clk 0:00:30.6]} 39... Qxd4 {[%clk 0:00:51.6]}
40. Rh8+ {[%clk 0:00:30.5]} 40... Kg6 {[%clk 0:00:52.2]} 41. Qe8+ {[%clk
0:00:30.8]} 41... Kf5 {[%clk 0:00:52.9]} 42. Qh5+ {[%clk 0:00:30.5]} 42... g5
{[%clk 0:00:52.7]} 43. Qg4+ {[%clk 0:00:30.1]} 43... Qxg4 {[%clk 0:00:52.9]} 44.
hxg4+ {[%clk 0:00:30.2]} 44... Kf4 {[%clk 0:00:53.3]} 45. Rf8 {[%clk 0:00:30.5]}
45... e4 {[%clk 0:00:53]} 46. Rxf6+ {[%clk 0:00:30.8]} 46... Kg3 {[%clk
0:00:53.4]} 47. fxe4 {[%clk 0:00:30.1]} 47... dxe4 {[%clk 0:00:54.3]} 48. Rb3+
{[%clk 0:00:29.5]} 48... Kxg4 {[%clk 0:00:54.8]} 49. Re3 {[%clk 0:00:29.2]}
49... Kh5 {[%clk 0:00:54.8]} 50. Rxe4 {[%clk 0:00:29.1]} 50... h3 {[%clk
0:00:52.2]} 51. Rf8 {[%clk 0:00:24]} 51... h2 {[%clk 0:00:48.4]} 52. Ra4 {[%clk
0:00:21.7]} 52... g4 {[%clk 0:00:48.2]} 53. Rxg4 {[%clk 0:00:21.7]} 53... Kxg4
{[%clk 0:00:48.6]} 54. Kxh2 {[%clk 0:00:21.8]} 54... Kh4 {[%clk 0:00:48.7]} 55.
g4 {[%clk 0:00:21.2]} 55... Kxg4 {[%clk 0:00:49.6]} 56. Rf1 {[%clk 0:00:20.6]}
56... Kg5 {[%clk 0:00:50.5]} 57. Kh3 {[%clk 0:00:20.5]} 57... Kh5 {[%clk
0:00:51]} 58. Rf5+ {[%clk 0:00:20.4]} 58... Kg6 {[%clk 0:00:51.7]} 59. Kg4
{[%clk 0:00:21.3]} 59... Kg7 {[%clk 0:00:51.8]} 60. Kh5 {[%clk 0:00:21.1]} 60...
Kg8 {[%clk 0:00:51.7]} 61. Kh6 {[%clk 0:00:20.9]} 61... Kh8 {[%clk 0:00:51.8]}
62. Rf8# {[%clk 0:00:20.7]} 1-0

[Event "Late-Titled-Tuesday-Blitz-July-09-2024"]
[Site "Chess.com"]
[Date "2024.07.09"]
[Round "8"]
[White "SocoLoco"]
[Black "cthake"]
[Result "0-1"]
[WhiteElo "2097"]
[BlackElo "1839"]
[TimeControl "180+1"]
[EndTime "15:27:49 PDT"]
[Termination "cthake won on time"]

1. e4 {[%clk 0:03:00.9]} 1... e6 {[%clk 0:02:56.8]} 2. d3 {[%clk 0:02:59.9]}
2... d5 {[%clk 0:02:56.1]} 3. Nc3 {[%clk 0:03:00.1]} 3... Nf6 {[%clk 0:02:54.1]}
4. Bg5 {[%clk 0:02:59]} 4... d4 {[%clk 0:02:47]} 5. Nce2 {[%clk 0:02:57.8]} 5...
e5 {[%clk 0:02:46.8]} 6. g3 {[%clk 0:02:56.2]} 6... Be7 {[%clk 0:02:46.3]} 7.
Bg2 {[%clk 0:02:55.8]} 7... c5 {[%clk 0:02:43.3]} 8. h3 {[%clk 0:02:54.8]} 8...
h6 {[%clk 0:02:42.2]} 9. Bd2 {[%clk 0:02:53.3]} 9... Nc6 {[%clk 0:02:41.8]} 10.
f4 {[%clk 0:02:52.9]} 10... exf4 {[%clk 0:02:36.7]} 11. gxf4 {[%clk 0:02:53.8]}
11... Qb6 {[%clk 0:02:21.8]} 12. Qc1 {[%clk 0:02:28.6]} 12... Nh5 {[%clk
0:02:16.6]} 13. Nf3 {[%clk 0:02:26]} 13... Bd7 {[%clk 0:02:01.5]} 14. a3 {[%clk
0:02:23.9]} 14... O-O-O {[%clk 0:01:59.7]} 15. b4 {[%clk 0:02:18.7]} 15... cxb4
{[%clk 0:01:54.7]} 16. axb4 {[%clk 0:02:19.6]} 16... Bxb4 {[%clk 0:01:52.6]} 17.
O-O {[%clk 0:02:12.7]} 17... Nf6 {[%clk 0:01:49.9]} 18. Kh2 {[%clk 0:02:07.9]}
18... g5 {[%clk 0:01:40.3]} 19. fxg5 {[%clk 0:01:59]} 19... hxg5 {[%clk
0:01:40.5]} 20. Nxg5 {[%clk 0:01:59.6]} 20... Ng4+ {[%clk 0:01:40.8]} 21. Kg1
{[%clk 0:01:25.2]} 21... Bxd2 {[%clk 0:01:33.4]} 22. Qxd2 {[%clk 0:01:24.2]}
22... Ne3 {[%clk 0:01:27.8]} 23. Nxf7 {[%clk 0:01:08.9]} 23... Bxh3 {[%clk
0:01:09.1]} 24. Bxh3+ {[%clk 0:00:50.4]} 24... Rxh3 {[%clk 0:01:07.1]} 25. Nxd8
{[%clk 0:00:49.8]} 25... Qxd8 {[%clk 0:01:06.7]} 26. Nf4 {[%clk 0:00:26.9]}
26... Qg5+ {[%clk 0:01:05.2]} 27. Ng2 {[%clk 0:00:23.6]} 27... Rg3 {[%clk
0:00:56.8]} 28. Rf2 {[%clk 0:00:23.4]} 28... Ne5 {[%clk 0:00:49.2]} 29. Kh2
{[%clk 0:00:13.1]} 29... Qh5+ {[%clk 0:00:40]} 30. Kg1 {[%clk 0:00:10.9]} 30...
Rxg2+ {[%clk 0:00:36.9]} 31. Rxg2 {[%clk 0:00:09.2]} 31... Nf3+ {[%clk
0:00:36.9]} 32. Kf2 {[%clk 0:00:09]} 32... Nxd2 {[%clk 0:00:36]} 33. Rg8+ {[%clk
0:00:08]} 33... Kc7 {[%clk 0:00:34.8]} 34. Rag1 {[%clk 0:00:08.4]} 34... Qf3+
{[%clk 0:00:32.9]} 35. Ke1 {[%clk 0:00:08]} 35... Qd1+ {[%clk 0:00:28.2]} 36.
Kf2 {[%clk 0:00:05.7]} 36... Qxc2 {[%clk 0:00:28]} 37. Kg3 {[%clk 0:00:03.7]}
37... Ndf1+ {[%clk 0:00:25.7]} 38. Kf4 {[%clk 0:00:04.6]} 38... Qf2+ {[%clk
0:00:24.4]} 39. Ke5 {[%clk 0:00:05.5]} 39... Qa2 {[%clk 0:00:18.2]} 40. R1g6
{[%clk 0:00:02]} 40... Qa5+ {[%clk 0:00:12.9]} 0-1

[Event "Late-Titled-Tuesday-Blitz-July-09-2024"]
[Site "Chess.com"]
[Date "2024.07.09"]
[Round "8"]
[White "VirtualCoach"]
[Black "katharinareinecke"]
[Result "1-0"]
[WhiteElo "2308"]
[BlackElo "2091"]
[TimeControl "180+1"]
[EndTime "15:27:50 PDT"]
[Termination "VirtualCoach won on time"]

1. e4 {[%clk 0:02:59.3]} 1... c6 {[%clk 0:02:59.8]} 2. d4 {[%clk 0:02:58.7]}
2... d5 {[%clk 0:03:00.3]} 3. e5 {[%clk 0:02:59]} 3... Bf5 {[%clk 0:02:59.2]} 4.
Nf3 {[%clk 0:02:57.9]} 4... e6 {[%clk 0:02:58.6]} 5. Be2 {[%clk 0:02:58.4]} 5...
Ne7 {[%clk 0:02:56.4]} 6. O-O {[%clk 0:02:58.9]} 6... Bg6 {[%clk 0:02:54]} 7.
Nbd2 {[%clk 0:02:55.3]} 7... Nf5 {[%clk 0:02:54.1]} 8. h3 {[%clk 0:02:53.5]}
8... Be7 {[%clk 0:02:53.7]} 9. c4 {[%clk 0:02:53.6]} 9... O-O {[%clk 0:02:52.7]}
10. b3 {[%clk 0:02:52.9]} 10... Nd7 {[%clk 0:02:48.9]} 11. Bb2 {[%clk
0:02:52.9]} 11... Rc8 {[%clk 0:02:46.5]} 12. Rc1 {[%clk 0:02:52.1]} 12... Nb6
{[%clk 0:02:45.8]} 13. Re1 {[%clk 0:02:45.9]} 13... dxc4 {[%clk 0:02:44.9]} 14.
Nxc4 {[%clk 0:02:44.8]} 14... Nd5 {[%clk 0:02:37.3]} 15. Bf1 {[%clk 0:02:44.3]}
15... Bb4 {[%clk 0:02:28.1]} 16. Ncd2 {[%clk 0:02:07.1]} 16... Nf4 {[%clk
0:02:15.3]} 17. a3 {[%clk 0:01:54]} 17... Ba5 {[%clk 0:02:09.4]} 18. b4 {[%clk
0:01:52.9]} 18... Bc7 {[%clk 0:01:50.7]} 19. Ne4 {[%clk 0:01:50]} 19... Nh4
{[%clk 0:01:28]} 20. Rc2 {[%clk 0:01:33.9]} 20... Nxf3+ {[%clk 0:01:14.6]} 21.
Qxf3 {[%clk 0:01:33.2]} 21... Nd5 {[%clk 0:01:05.5]} 22. Bd3 {[%clk 0:01:30.9]}
22... Bxe4 {[%clk 0:00:59.5]} 23. Bxe4 {[%clk 0:01:27.5]} 23... Bb6 {[%clk
0:00:59.2]} 24. Rd1 {[%clk 0:01:24.6]} 24... Qg5 {[%clk 0:00:57.4]} 25. Bc1
{[%clk 0:01:23.5]} 25... Qe7 {[%clk 0:00:54.9]} 26. Qg3 {[%clk 0:01:20.8]} 26...
g6 {[%clk 0:00:52.9]} 27. Bh6 {[%clk 0:01:08.3]} 27... Rfe8 {[%clk 0:00:52.4]}
28. Bxd5 {[%clk 0:01:08.5]} 28... cxd5 {[%clk 0:00:49]} 29. Bg5 {[%clk
0:01:08.5]} 29... Rxc2 {[%clk 0:00:32.9]} 30. Bxe7 {[%clk 0:01:04]} 30... Rxe7
{[%clk 0:00:33.8]} 31. a4 {[%clk 0:00:57.6]} 31... a5 {[%clk 0:00:29.5]} 32. Qd3
{[%clk 0:00:55.6]} 32... Rc4 {[%clk 0:00:20.2]} 33. bxa5 {[%clk 0:00:54.7]}
33... Bxa5 {[%clk 0:00:20.3]} 34. Qb3 {[%clk 0:00:55.3]} 34... b6 {[%clk
0:00:20.6]} 35. Qb5 {[%clk 0:00:53.6]} 35... Rec7 {[%clk 0:00:20.5]} 36. Kh2
{[%clk 0:00:51.9]} 36... Kg7 {[%clk 0:00:20.6]} 37. Qe8 {[%clk 0:00:44.5]} 37...
h5 {[%clk 0:00:20.5]} 38. Rd3 {[%clk 0:00:44.5]} 38... Rc2 {[%clk 0:00:20.1]}
39. Rf3 {[%clk 0:00:43.2]} 39... R2c3 {[%clk 0:00:17.2]} 40. Rf4 {[%clk
0:00:40.8]} 40... R3c4 {[%clk 0:00:15.3]} 41. Qd8 {[%clk 0:00:40.3]} 41... Rc3
{[%clk 0:00:14.8]} 42. Qf6+ {[%clk 0:00:40.7]} 42... Kg8 {[%clk 0:00:14.3]} 43.
g4 {[%clk 0:00:41.5]} 43... hxg4 {[%clk 0:00:14.1]} 44. hxg4 {[%clk 0:00:41.1]}
44... Rc2 {[%clk 0:00:11.8]} 45. g5 {[%clk 0:00:41.3]} 45... Be1 {[%clk
0:00:11.8]} 46. Kg2 {[%clk 0:00:39.8]} 46... Ba5 {[%clk 0:00:10]} 47. Rh4 {[%clk
0:00:39.4]} 47... Rxf2+ {[%clk 0:00:03.3]} 48. Qxf2 {[%clk 0:00:34.1]} 1-0

[Event "Late-Titled-Tuesday-Blitz-July-09-2024"]
[Site "Chess.com"]
[Date "2024.07.09"]
[Round "8"]
[White "bazar-wokzal"]
[Black "alexrustemov"]
[Result "0-1"]
[WhiteElo "2645"]
[BlackElo "2872"]
[TimeControl "180+1"]
[EndTime "15:27:54 PDT"]
[Termination "alexrustemov won on time"]

1. e4 {[%clk 0:03:00.9]} 1... g6 {[%clk 0:02:59.9]} 2. Nc3 {[%clk 0:03:00.3]}
2... Bg7 {[%clk 0:03:00.1]} 3. h4 {[%clk 0:03:00.3]} 3... h5 {[%clk 0:02:43.5]}
4. Nf3 {[%clk 0:02:59.7]} 4... d6 {[%clk 0:02:41.6]} 5. Ng5 {[%clk 0:02:59.5]}
5... f6 {[%clk 0:02:34.9]} 6. Nh3 {[%clk 0:02:56]} 6... e5 {[%clk 0:02:33.4]} 7.
d4 {[%clk 0:02:50.8]} 7... c6 {[%clk 0:02:28.6]} 8. dxe5 {[%clk 0:02:42.3]} 8...
dxe5 {[%clk 0:02:27.7]} 9. Qxd8+ {[%clk 0:02:42.2]} 9... Kxd8 {[%clk 0:02:28.3]}
10. Be3 {[%clk 0:02:38.7]} 10... Be6 {[%clk 0:02:26.8]} 11. O-O-O+ {[%clk
0:02:38.3]} 11... Kc7 {[%clk 0:02:23.8]} 12. f4 {[%clk 0:02:38.4]} 12... Nd7
{[%clk 0:02:20.3]} 13. fxe5 {[%clk 0:02:36.3]} 13... Nxe5 {[%clk 0:02:15.9]} 14.
Nf4 {[%clk 0:02:34.6]} 14... Bf7 {[%clk 0:02:15.8]} 15. g3 {[%clk 0:02:32.2]}
15... Nh6 {[%clk 0:02:15.4]} 16. Bh3 {[%clk 0:02:23.7]} 16... Rhe8 {[%clk
0:02:13.1]} 17. Bc5 {[%clk 0:02:05.7]} 17... Bf8 {[%clk 0:02:05.6]} 18. Bxf8
{[%clk 0:01:57.1]} 18... Rxf8 {[%clk 0:02:05.5]} 19. Be6 {[%clk 0:01:57.1]}
19... Rae8 {[%clk 0:02:02]} 20. Bxf7 {[%clk 0:01:55.6]} 20... Rxf7 {[%clk
0:02:02.4]} 21. Rhe1 {[%clk 0:01:50.5]} 21... Nhg4 {[%clk 0:02:01.7]} 22. Re2
{[%clk 0:01:48.8]} 22... Rfe7 {[%clk 0:02:01.3]} 23. b3 {[%clk 0:01:40.6]} 23...
Nh6 {[%clk 0:01:51.4]} 24. a4 {[%clk 0:01:35.2]} 24... a5 {[%clk 0:01:50.8]} 25.
Kb2 {[%clk 0:01:29]} 25... Nhf7 {[%clk 0:01:50.3]} 26. Rf1 {[%clk 0:01:24.9]}
26... Nd6 {[%clk 0:01:48.7]} 27. Nd3 {[%clk 0:01:22.5]} 27... Ng4 {[%clk
0:01:45.3]} 28. Rf4 {[%clk 0:01:14.2]} 28... f5 {[%clk 0:01:42.6]} 29. exf5
{[%clk 0:01:01.2]} 29... Rxe2 {[%clk 0:01:36.2]} 30. Nxe2 {[%clk 0:01:01]} 30...
Rxe2 {[%clk 0:01:36.4]} 31. fxg6 {[%clk 0:01:01.5]} 31... Re6 {[%clk 0:01:30.8]}
32. g7 {[%clk 0:00:51.9]} 32... Rg6 {[%clk 0:01:30.1]} 33. Nc5 {[%clk
0:00:45.8]} 33... Nh6 {[%clk 0:00:53.8]} 34. Rf8 {[%clk 0:00:28.1]} 34... Ndf5
{[%clk 0:00:49.9]} 35. Rh8 {[%clk 0:00:13.5]} 35... b6 {[%clk 0:00:41]} 36. Ne4
{[%clk 0:00:06.9]} 36... Rxg7 {[%clk 0:00:37]} 37. Nf6 {[%clk 0:00:07.2]} 37...
Rxg3 {[%clk 0:00:33.2]} 38. Nxh5 {[%clk 0:00:07.3]} 38... Rg2 {[%clk 0:00:30.6]}
39. Rh7+ {[%clk 0:00:07.7]} 39... Kd6 {[%clk 0:00:27.9]} 40. Nf6 {[%clk
0:00:08]} 40... Rh2 {[%clk 0:00:23.7]} 41. Ne8+ {[%clk 0:00:03.9]} 41... Kc5
{[%clk 0:00:22.9]} 42. Rc7 {[%clk 0:00:02.8]} 42... Nd4 {[%clk 0:00:20]} 0-1

[Event "Late-Titled-Tuesday-Blitz-July-09-2024"]
[Site "Chess.com"]
[Date "2024.07.09"]
[Round "8"]
[White "Oleg_Papayan"]
[Black "realburq"]
[Result "1-0"]
[WhiteElo "2600"]
[BlackElo "2434"]
[TimeControl "180+1"]
[EndTime "15:27:54 PDT"]
[Termination "Oleg_Papayan won by resignation"]

1. d4 {[%clk 0:03:00.9]} 1... Nf6 {[%clk 0:02:15.4]} 2. Nc3 {[%clk 0:03:00]}
2... d5 {[%clk 0:02:14]} 3. Bf4 {[%clk 0:03:00]} 3... c6 {[%clk 0:02:05.4]} 4.
Nf3 {[%clk 0:02:57.9]} 4... g6 {[%clk 0:02:05.2]} 5. e3 {[%clk 0:02:49.6]} 5...
Bg7 {[%clk 0:02:05.1]} 6. Ne5 {[%clk 0:02:49.8]} 6... O-O {[%clk 0:02:03.1]} 7.
h4 {[%clk 0:02:50.3]} 7... h5 {[%clk 0:02:03.1]} 8. Qd2 {[%clk 0:02:38.6]} 8...
Bf5 {[%clk 0:01:57.3]} 9. f3 {[%clk 0:02:37.8]} 9... Nbd7 {[%clk 0:01:55.1]} 10.
Be2 {[%clk 0:02:20.8]} 10... Qb6 {[%clk 0:01:54.4]} 11. O-O-O {[%clk 0:02:18.4]}
11... Rfc8 {[%clk 0:01:39.4]} 12. g4 {[%clk 0:02:17.5]} 12... Be6 {[%clk
0:01:39.7]} 13. Rdg1 {[%clk 0:01:58.3]} 13... c5 {[%clk 0:01:38.1]} 14. gxh5
{[%clk 0:01:39]} 14... Nxh5 {[%clk 0:01:36.4]} 15. Nxd7 {[%clk 0:01:37.4]} 15...
Bxd7 {[%clk 0:01:32.8]} 16. Nxd5 {[%clk 0:01:37.8]} 16... Qe6 {[%clk 0:01:14.3]}
17. c4 {[%clk 0:00:45.2]} 17... cxd4 {[%clk 0:01:13]} 18. Nc7 {[%clk 0:00:45.3]}
18... Rxc7 {[%clk 0:01:11.1]} 19. Bxc7 {[%clk 0:00:46.2]} 19... Rc8 {[%clk
0:01:11.6]} 20. Bf4 {[%clk 0:00:42.6]} 20... Nxf4 {[%clk 0:00:47]} 21. exf4
{[%clk 0:00:43.5]} 21... d3 {[%clk 0:00:42.5]} 22. Bxd3 {[%clk 0:00:39.1]} 22...
b5 {[%clk 0:00:41.9]} 23. f5 {[%clk 0:00:36]} 23... Qf6 {[%clk 0:00:30.4]} 24.
fxg6 {[%clk 0:00:33.8]} 24... bxc4 {[%clk 0:00:29.3]} 25. gxf7+ {[%clk
0:00:34.7]} 25... Kf8 {[%clk 0:00:25.3]} 26. Be4 {[%clk 0:00:27.9]} 26... c3
{[%clk 0:00:23.1]} 27. Qxd7 {[%clk 0:00:26.5]} 27... cxb2+ {[%clk 0:00:20.2]}
28. Kb1 {[%clk 0:00:26.1]} 28... Rc1+ {[%clk 0:00:18.1]} 29. Rxc1 {[%clk
0:00:26.8]} 29... bxc1=Q+ {[%clk 0:00:17.7]} 30. Kxc1 {[%clk 0:00:27.7]} 30...
Qb2+ {[%clk 0:00:14.3]} 31. Kd1 {[%clk 0:00:27.9]} 31... Qa1+ {[%clk 0:00:08.7]}
32. Ke2 {[%clk 0:00:28.3]} 32... Qb2+ {[%clk 0:00:08.9]} 33. Qd2 {[%clk
0:00:27.7]} 33... Qb5+ {[%clk 0:00:07.8]} 34. Kf2 {[%clk 0:00:25.7]} 34... Qb6+
{[%clk 0:00:05.4]} 35. Kg2 {[%clk 0:00:26.1]} 35... Bh6 {[%clk 0:00:05.1]} 36.
Qd5 {[%clk 0:00:18.9]} 36... Qb2+ {[%clk 0:00:04.5]} 37. Kh3 {[%clk 0:00:19.2]}
37... Qb8 {[%clk 0:00:02.8]} 38. Rg1 {[%clk 0:00:16.8]} 38... Bg7 {[%clk
0:00:02.5]} 39. Qa8 {[%clk 0:00:12.5]} 39... Qxa8 {[%clk 0:00:01.4]} 40. Bxa8
{[%clk 0:00:13.4]} 1-0

[Event "Late-Titled-Tuesday-Blitz-July-09-2024"]
[Site "Chess.com"]
[Date "2024.07.09"]
[Round "8"]
[White "GulamaliRises"]
[Black "ninjatrick"]
[Result "0-1"]
[WhiteElo "2645"]
[BlackElo "2506"]
[TimeControl "180+1"]
[EndTime "15:27:57 PDT"]
[Termination "ninjatrick won by resignation"]

1. e4 {[%clk 0:03:00.9]} 1... e6 {[%clk 0:02:58.4]} 2. d4 {[%clk 0:02:58.9]}
2... d5 {[%clk 0:02:55.5]} 3. e5 {[%clk 0:02:56.4]} 3... c5 {[%clk 0:02:52.1]}
4. c3 {[%clk 0:02:56.6]} 4... Nc6 {[%clk 0:02:51.9]} 5. Nf3 {[%clk 0:02:57]}
5... cxd4 {[%clk 0:02:41.3]} 6. cxd4 {[%clk 0:02:56.2]} 6... Nge7 {[%clk
0:02:35.3]} 7. Nc3 {[%clk 0:02:56.5]} 7... Ng6 {[%clk 0:02:32]} 8. h4 {[%clk
0:02:53.1]} 8... h5 {[%clk 0:02:32.2]} 9. Bd3 {[%clk 0:02:51.7]} 9... Be7 {[%clk
0:02:21]} 10. Bxg6 {[%clk 0:02:47.9]} 10... fxg6 {[%clk 0:02:21.9]} 11. Qd3
{[%clk 0:02:47.1]} 11... O-O {[%clk 0:02:10.4]} 12. Qxg6 {[%clk 0:02:38]} 12...
Rxf3 {[%clk 0:01:59.9]} 13. gxf3 {[%clk 0:02:38.9]} 13... Nxd4 {[%clk 0:02:00]}
14. Qd3 {[%clk 0:02:08]} 14... Nf5 {[%clk 0:01:53.4]} 15. Bd2 {[%clk 0:02:06.6]}
15... Qb6 {[%clk 0:01:37.6]} 16. O-O-O {[%clk 0:02:05.9]} 16... Bd7 {[%clk
0:01:31]} 17. Kb1 {[%clk 0:01:49.9]} 17... Rc8 {[%clk 0:01:26]} 18. Rc1 {[%clk
0:01:20.3]} 18... Bc5 {[%clk 0:01:04.3]} 19. Rhg1 {[%clk 0:00:53.7]} 19... Bxf2
{[%clk 0:01:02.1]} 20. Rg5 {[%clk 0:00:39.4]} 20... Ne3 {[%clk 0:00:53.4]} 21.
Qg6 {[%clk 0:00:26.6]} 21... Nf5 {[%clk 0:00:53.2]} 22. Rxh5 {[%clk 0:00:22.1]}
22... Qd4 {[%clk 0:00:39.6]} 23. Qh7+ {[%clk 0:00:20.9]} 23... Kf7 {[%clk
0:00:36.2]} 24. Rxf5+ {[%clk 0:00:05.7]} 24... exf5 {[%clk 0:00:36.4]} 25. Qh5+
{[%clk 0:00:06.5]} 25... Kg8 {[%clk 0:00:24.3]} 26. Rc2 {[%clk 0:00:07]} 26...
Qxe5 {[%clk 0:00:17.2]} 27. f4 {[%clk 0:00:07.6]} 27... Qd4 {[%clk 0:00:11.8]}
28. Qf3 {[%clk 0:00:06.8]} 28... Bc6 {[%clk 0:00:08.4]} 29. Ne2 {[%clk
0:00:05.6]} 29... Qb6 {[%clk 0:00:08.6]} 30. Qd3 {[%clk 0:00:03.5]} 30... Re8
{[%clk 0:00:07.1]} 31. Bc3 {[%clk 0:00:03.4]} 31... Ba4 {[%clk 0:00:05.9]} 32.
b3 {[%clk 0:00:03.4]} 32... Bb5 {[%clk 0:00:05.7]} 33. Qxd5+ {[%clk 0:00:03.1]}
33... Kh8 {[%clk 0:00:05.9]} 34. Nd4 {[%clk 0:00:03]} 34... Bd3 {[%clk
0:00:05.8]} 35. Kb2 {[%clk 0:00:03.6]} 35... Bxc2 {[%clk 0:00:05.5]} 36. Nxf5
{[%clk 0:00:04.5]} 36... Bxf5 {[%clk 0:00:05.2]} 37. Bxg7+ {[%clk 0:00:05]}
37... Kxg7 {[%clk 0:00:05]} 38. Qxf5 {[%clk 0:00:05.9]} 38... Qf6+ {[%clk
0:00:05.4]} 39. Ka3 {[%clk 0:00:06.8]} 39... Qxf5 {[%clk 0:00:06]} 0-1

[Event "Late-Titled-Tuesday-Blitz-July-09-2024"]
[Site "Chess.com"]
[Date "2024.07.09"]
[Round "8"]
[White "Bilan_Danila"]
[Black "pirulillo"]
[Result "1-0"]
[WhiteElo "2601"]
[BlackElo "2444"]
[TimeControl "180+1"]
[EndTime "15:27:58 PDT"]
[Termination "Bilan_Danila won by checkmate"]

1. d4 {[%clk 0:03:00.9]} 1... Nf6 {[%clk 0:02:59.1]} 2. Nf3 {[%clk 0:03:00.1]}
2... g6 {[%clk 0:02:58.9]} 3. Bg5 {[%clk 0:02:59.3]} 3... Bg7 {[%clk 0:02:58.5]}
4. c3 {[%clk 0:02:59.4]} 4... O-O {[%clk 0:02:58.1]} 5. Nbd2 {[%clk 0:02:59.8]}
5... d5 {[%clk 0:02:57.9]} 6. e3 {[%clk 0:02:58.5]} 6... b6 {[%clk 0:02:55.4]}
7. Bd3 {[%clk 0:02:58.1]} 7... a5 {[%clk 0:02:54.7]} 8. Ne5 {[%clk 0:02:55.4]}
8... a4 {[%clk 0:02:52.2]} 9. a3 {[%clk 0:02:50.7]} 9... c6 {[%clk 0:02:44.3]}
10. h4 {[%clk 0:02:44.4]} 10... h5 {[%clk 0:02:39.4]} 11. f4 {[%clk 0:02:25.8]}
11... Ng4 {[%clk 0:02:32.3]} 12. f5 {[%clk 0:01:39.3]} 12... Bxe5 {[%clk
0:01:57]} 13. dxe5 {[%clk 0:01:36.1]} 13... Nxe5 {[%clk 0:01:56.9]} 14. Bc2
{[%clk 0:01:28.3]} 14... Bxf5 {[%clk 0:01:52.6]} 15. Bxf5 {[%clk 0:01:27.2]}
15... gxf5 {[%clk 0:01:52.4]} 16. Qxh5 {[%clk 0:01:24.8]} 16... Qd6 {[%clk
0:01:51.6]} 17. O-O {[%clk 0:01:11.5]} 17... Qg6 {[%clk 0:01:40.2]} 18. Qxg6+
{[%clk 0:00:55.7]} 18... Nxg6 {[%clk 0:01:38.1]} 19. Rxf5 {[%clk 0:00:34.7]}
19... e6 {[%clk 0:01:37.7]} 20. Rf3 {[%clk 0:00:26.6]} 20... f5 {[%clk
0:01:29.6]} 21. Rg3 {[%clk 0:00:18.1]} 21... Kh7 {[%clk 0:01:24.9]} 22. Nf3
{[%clk 0:00:15.7]} 22... Nd7 {[%clk 0:01:23.5]} 23. Kf2 {[%clk 0:00:12.9]} 23...
Nde5 {[%clk 0:01:23.2]} 24. h5 {[%clk 0:00:10.4]} 24... Ng4+ {[%clk 0:01:18.7]}
25. Ke2 {[%clk 0:00:06.4]} 25... N6e5 {[%clk 0:01:15.6]} 26. Bf4 {[%clk
0:00:03.3]} 26... Nc4 {[%clk 0:01:12.8]} 27. Ng5+ {[%clk 0:00:03.3]} 27... Kh8
{[%clk 0:01:12.5]} 28. Nxe6 {[%clk 0:00:02.6]} 28... Rfe8 {[%clk 0:01:11.3]} 29.
Nd4 {[%clk 0:00:03.1]} 29... Rf8 {[%clk 0:01:01.6]} 30. Nxf5 {[%clk 0:00:02.9]}
30... Rxf5 {[%clk 0:01:00.1]} 31. Rxg4 {[%clk 0:00:03.2]} 31... Re8 {[%clk
0:00:59.9]} 32. h6 {[%clk 0:00:02.9]} 32... Re4 {[%clk 0:00:51.5]} 33. g3 {[%clk
0:00:01.9]} 33... Ne5 {[%clk 0:00:48.2]} 34. Rg7 {[%clk 0:00:01.9]} 34... Nc4
{[%clk 0:00:40.8]} 35. Ra7 {[%clk 0:00:02.3]} 35... c5 {[%clk 0:00:37.3]} 36.
Rh1 {[%clk 0:00:02.8]} 36... Re8 {[%clk 0:00:34.4]} 37. Rh4 {[%clk 0:00:02.6]}
37... d4 {[%clk 0:00:32.9]} 38. cxd4 {[%clk 0:00:03.5]} 38... cxd4 {[%clk
0:00:33.1]} 39. Rg4 {[%clk 0:00:03.2]} 39... Nxe3 {[%clk 0:00:20.1]} 40. Rgg7
{[%clk 0:00:03.2]} 40... Nd5+ {[%clk 0:00:17.3]} 41. Kd2 {[%clk 0:00:03.8]}
41... Nxf4 {[%clk 0:00:17.2]} 42. Rh7+ {[%clk 0:00:03.7]} 42... Kg8 {[%clk
0:00:17]} 43. Rag7+ {[%clk 0:00:04.6]} 43... Kf8 {[%clk 0:00:17.1]} 44. Rh8#
{[%clk 0:00:05.5]} 1-0